Cogmind - Beta 15 @@@ ROGUE MODE // 2025.08.12 @ 12:37:22 Player: C0-2MO Result: Destroyed by as-06931 with Assembled Rifle Performance ------------- Evolutions (0) 0 Regions Visited (2) 400 Robots Destroyed (13) 65 Value Destroyed (186) 186 Prototype IDs (0) 0 Alien Tech Used (0) 0 Bonus (0) 0 TOTAL SCORE: 651 Bonus ------- None Cogmind --------- Core Integrity 0/250 Matter 196/300 Energy 54/100 System Corruption 0% Temperature Cool (0) Movement Treading (160) Location -10/Mines Parts ------- > --- POWER (1) -------- (None) > --- PROPULSION (2) --- Light Treads Light Treads > --- UTILITY (2) ------ Large Storage Unit > --- WEAPON (2) ------- Assault Rifle > --- INVENTORY (15) --- Ion Engine Improved Ion Engine Wheel Armored Wheel Structural Scanner Seismic Detector Mining Laser Peak State ------------ > --- POWER ------------ Improved Ion Engine > --- PROPULSION ------- Light Treads Armored Wheel > --- UTILITY ---------- Large Storage Unit Light Armor Plating > --- WEAPON ----------- Assault Rifle Assault Rifle > --- INVENTORY -------- Ion Engine Improved Ion Engine Light Treads Wheel Armored Wheel Seismic Detector Assault Rifle Mining Laser [Rating: 10] Favorites ----------- Power Improved Ion Engine Engine Improved Ion Engine Propulsion Light Treads Treads Light Treads Wheel Armored Wheel Utility Light Armor Plating Device Seismic Detector Storage Large Storage Unit Protection Light Armor Plating Weapon Assault Rifle Energy Gun Small Laser Ballistic Gun Assault Rifle Build | -11 -10 -10 ------- Run | Yrd Mat Min Slots Evolved . | . . . Power . | . . . Propulsion . | . . . Utility . | . . . Weapon . | . . . Parts Attached 18 | 7 5 6 Power 3 | 2 1 . Engine 3 | 2 1 . Core . | . . . Reactor . | . . . Propulsion 7 | 2 1 4 Treads 3 | 1 . 2 Leg . | . . . Wheel 4 | 1 1 2 Hover . | . . . Flight . | . . . Utility 3 | 1 2 . Device 1 | 1 . . Storage 1 | . 1 . Processor . | . . . Hackware . | . . . Protection 1 | . 1 . Artifact . | . . . Weapon 5 | 2 1 2 Energy Gun 1 | 1 . . Energy Cannon . | . . . Ballistic Gun 4 | 1 1 2 Ballistic Cannon . | . . . Launcher . | . . . Special Weapon . | . . . Impact Weapon . | . . . Slashing Weapon . | . . . Piercing Weapon . | . . . Special Melee Weapon . | . . . Unidentified Prototypes . | . . . Parts Lost 7 | . . 7 Power 1 | . . 1 Propulsion 2 | . . 2 Utility 1 | . . 1 Weapon 3 | . . 3 Highest Loss Streak 7 | . . 7 To Critical Strikes . | . . . Average Backups 6 | 2 6 8 Power 1 | . 1 2 Propulsion 2 | 1 2 3 Utility . | . . 2 Weapon 1 | . 1 1 Tool/Special . | . . . Unused Backups 4 | . 1 3 Power 1 | . . 1 Propulsion 1 | . 1 . Utility 1 | . . 1 Weapon 1 | . . 1 Tool/Special . | . . . Average Slot Usage (%) 94 | . 97 77 Engine 13 | . 14 7 Treads 13 | . 14 7 Wheel 14 | . 14 18 Device 5 | . 5 . Storage 8 | . 8 14 Protection 11 | . 11 7 Energy Gun 2 | . 2 . Ballistic Gun 24 | . 25 22 Peak Build Rating 10 | 6 10 10 Average Rating 8 | 4 8 7 On Entrance 5 | . 6 10 Naked Turns . | . . . Heaviest Build 34 | 9 34 34 Greatest Support 22 | 16 16 22 Greatest Overweight (x) 2 | . 2 2 Average Overweight (x) 1 | . 1 . Largest Inventory Capacity 15 | 5 15 15 Average Capacity 10 | 5 10 15 Most Carried 11 | 4 11 11 Average Carried 6 | 2 6 8 Final Capacity 15 | 5 15 15 Final Carried 11 | 4 11 7 Class Distribution -------------------- 100% | Mutant Dominant Class ---------------- Mutant | -10/Materials Mutant | -10/Mines Resources | -11 -10 -10 ----------- Run | Yrd Mat Min Matter Collected 500 | 300 200 . Remotely . | . . . Salvage Created 376 | 139 195 42 Parts 29 | 10 14 5 Haulers Intercepted 1 | . 1 . Recyclers Shooed . | . . . Parts Field Recycled . | . . . Retrieved Matter . | . . . Parts Self-Destructed . | . . . Prevented . | . . . Kills | -11 -10 -10 ------- Run | Yrd Mat Min Combat Hostiles Destroyed 8 | . 7 1 Guns 8 | . 7 1 Classes Destroyed 6 | 2 3 1 Tunneler 3 | 3 . . Hauler 1 | . 1 . Recycler 1 | 1 . . Swarmer 6 | . 6 . Grunt 1 | . 1 . Demolisher 1 | . . 1 Best Kill Streak 4 | 4 3 1 Combat Bots Only 3 | . 3 1 Max Kills in Single Turn 2 | 2 1 1 Gunslinging . | . . . Exploded . | . . . Melee . | . . . Uniques/NPCs Destroyed . | . . . Combat | -11 -10 -10 -------- Run | Yrd Mat Min Hostile Shots Fired 65 | . 27 38 Missed 12 | . 6 6 Hits 53 | . 21 32 Projectile 53 | . 21 32 AOE 23 | . . 23 Damage Taken 1194 | . 212 982 Core 258 | . 32 226 Absorbed by Shields . | . . . Regen/Repaired (Parts) 54 | . 54 . Core Remaining (%) 100 | 100 . . Volleys Fired 47 | 10 24 13 Largest 2 | 2 2 2 Hottest 60 | 60 40 40 Shots Fired 93 | 20 48 25 Gun 93 | 20 48 25 Cannon . | . . . Launcher . | . . . Special . | . . . Kinetic 83 | 10 48 25 Thermal 10 | 10 . . Explosive . | . . . Electromagnetic . | . . . Robot Hit Streak 12 | 5 12 9 Robot Miss Streak 4 | 2 3 4 Penetration Max . | . . . Secondary Targets . | . . . Shots Hit Robots 62 | 12 30 20 Core Hits 20 | 5 10 5 Critical Kills . | . . . Critical Parts Destroyed 1 | . 1 . Critical Strikes 1 | . 1 . Destroy 1 | . 1 . Melee Attacks . | . . . Impact . | . . . Slashing . | . . . Piercing . | . . . Sneak Attacks . | . . . Combat Hostiles . | . . . Follow-up Attacks . | . . . Damage Inflicted 785 | 154 382 249 Guns 785 | 154 382 249 Cannons . | . . . Explosions . | . . . Melee . | . . . Ramming . | . . . Kinetic 704 | 73 382 249 Thermal 81 | 81 . . Explosive . | . . . Electromagnetic . | . . . Impact . | . . . Slashing . | . . . Piercing . | . . . Highest Corruption . | . . . Average Corruption . | . . . Corruption Purged . | . . . Corruption Blocked . | . . . Overload Shots . | . . . Overflow Damage . | . . . Projectiles . | . . . Explosions . | . . . Melee . | . . . Knockbacks . | . . . Impact . | . . . Kinetic . | . . . Secondary . | . . . Self-Inflicted Damage . | . . . Shots . | . . . Rammed . | . . . Targets Rammed . | . . . Kicked . | . . . Crushed . | . . . Highest Temperature 3 | . 3 . Average Temperature 3 | . 3 . Received Heat Transfer 50 | . 30 20 Siege Activations . | . . . Martial Activations . | . . . Shielding Activations . | . . . Robots Disrupted . | . . . Combat Hostiles . | . . . Robots Corrupted . | . . . Combat Hostiles . | . . . Parts Fried . | . . . Impact Corruptions . | . . . Robots Melted . | . . . Combat Hostiles . | . . . Parts Melted . | . . . Heat Transferred 175 | 175 . . Parts Sabotaged . | . . . Parts Stolen . | . . . Parts Stripped . | . . . Power Chain Reactions . | . . . Alert | -11 -10 -10 ------- Run | Yrd Mat Min Maximum Alert Level . | . . . Low Security (%) 100 | 100 100 100 Level 1 . | . . . Level 2 . | . . . Level 3 . | . . . Level 4 . | . . . Level 5 . | . . . High Security . | . . . Max Security . | . . . Peak Influence 112 | 15 112 25 Initial 25 | . 3 25 Average 39 | 2 48 7 Influence Increases 372 | 20 332 20 Destroy 0b10 Robot/C 160 | . 140 20 Destroy 0b10 Robot/NC 25 | 20 5 . Destroy Leader 32 | . 32 . Successful Hack 34 | . 34 . Select Force Hacks 60 | . 60 . Disable Machine 15 | . 15 . Destroy Structure 1 | . 1 . Lose Combat Pursuer 45 | . 45 . Influence Decreases 372 | 15 271 86 Entered New Map 43 | . 2 41 Time Decay 304 | 15 269 20 Lost Part 25 | . . 25 Squads Dispatched 3 | . 3 . Investigation 3 | . 3 . Extermination . | . . . Reinforcement . | . . . Assault . | . . . Garrison . | . . . Intercept . | . . . Searches Triggered . | . . . Construction Impeded . | . . . Haulers Reinforced . | . . . Active Scanning Responses . | . . . Cargo Convoy Interrupts . | . . . Stealth | -11 -10 -10 --------- Run | Yrd Mat Min Distress Signals . | . . . Communications Jammed . | . . . Distress Signals . | . . . Times Spotted 20 | . 12 8 Peak Tracking Total 6 | . 4 6 Tactical Retreats 4 | . 2 2 Traps | -11 -10 -10 ------- Run | Yrd Mat Min Traps Triggered 2 | . 2 . Indirectly . | . . . Trap Hack Attempts . | . . . Triggered . | . . . Disarmed . | . . . Reprogrammed . | . . . Reused . | . . . Traps Extracted . | . . . Installed . | . . . Triggered . | . . . Machines | -11 -10 -10 ---------- Run | Yrd Mat Min Machines Disabled 1 | . 1 . Max in Single Turn 1 | . 1 . Machines Repaired . | . . . Machines Dismantled . | . . . Machines Sabotaged . | . . . Overloaded Fab Kills . | . . . Hacking | -11 -10 -10 --------- Run | Yrd Mat Min Machines Accessed 10 | . 10 . Terminals 7 | . 7 . Fabricators . | . . . Repair Stations 1 | . 1 . Recycling Units 2 | . 2 . Scanalyzers . | . . . Garrison Access . | . . . Total Hacks 23 | . 23 . Successful 14 | . 14 . Failed 9 | . 9 . Catastrophic 1 | . 1 . Database Lockouts . | . . . Manual 20 | . 20 . Terminals 19 | . 19 . Fabricators . | . . . Repair Stations 2 | . 2 . Recycling Units 2 | . 2 . Scanalyzers . | . . . Garrison Access . | . . . Terminal Hacks 2 | . 2 . Robot Analysis 1 | . 1 . Zone Layout 1 | . 1 . Fabricator Hacks . | . . . Repair Station Hacks 2 | . 2 . Scan Component 1 | . 1 . Repair 1 | . 1 . Recycling Unit Hacks . | . . . Scanalyzer . | . . . Garrison Access Hacks . | . . . Unauthorized Hacks 10 | . 10 . Terminals 8 | . 8 . Botnet 2 | . 2 . Skim 6 | . 6 . Fabricators . | . . . Repair Stations . | . . . Recycling Units 2 | . 2 . Tunnel 2 | . 2 . Scanalyzers . | . . . Garrison Access . | . . . Data Cores Recovered . | . . . Used . | . . . Hacking Detections 8 | . 8 . Full Trace Events 1 | . 1 . Feedback Events . | . . . Feedback Blocked . | . . . Robot Schematics Acquired . | . . . Robots Built . | . . . Authchips . | . . . Time . | . . . Total Robot Build Rating . | . . . Part Schematics Acquired . | . . . Parts Built . | . . . Authchips . | . . . Time . | . . . Total Part Build Rating . | . . . Parts Repaired 1 | . 1 . Time 26 | . 26 . Parts Recycled . | . . . Recycled Matter . | . . . Retrieved Matter . | . . . Retrieved Components . | . . . Parts Scanalyzed . | . . . Part Schematics Acquired . | . . . Parts Damaged . | . . . Bothacking | -11 -10 -10 ------------ Run | Yrd Mat Min Used RIF Installer . | . . . Robots Hacked . | . . . Non-combat . | . . . Combat . | . . . Robot Hacks Applied . | . . . Relay Couplers Released . | . . . Fabnet Peak Effective % . | . . . Robots Rewired . | . . . Allies Hacked . | . . . Hacks Repelled . | . . . Allies | -11 -10 -10 -------- Run | Yrd Mat Min Total Allies . | . . . Largest Group . | . . . Highest-Rated Group . | . . . Highest-Rated Ally . | . . . Total Orders . | . . . Ally Attacks . | . . . Total Damage . | . . . Kills . | . . . Allies Corrupted . | . . . Allies Melted . | . . . Intel | -11 -10 -10 ------- Run | Yrd Mat Min Active Infowar (turns) 324 | 14 310 . Seismic 324 | 14 310 . Robot Analysis Total 1 | . 1 . Derelict Logs Recovered . | . . . Drone Launches . | . . . Drone Recoveries . | . . . Exploration | -11 -10 -10 ------------- Run | Yrd Mat Min Turns Passed 945 | 93 743 109 Spaces Moved 644 | 51 527 66 Core 1 | 1 . . Treads . | . . . Legs . | . . . Wheels 643 | 50 527 66 Hover . | . . . Flight . | . . . Fastest Speed 50 | 50 100 85 Average Speed 109 | 99 112 94 Slowest Speed 120 | 100 120 120 Overloaded Moves . | . . . Propulsion Burnouts . | . . . Robots Hopped . | . . . Potential Cave-ins . | . . . Cave-ins Triggered . | . . . Exploration Rate (%) 38 | 4 84 28 Regions Visited 2 Branch Regions 1 Pre-discovered Areas 6 | . 5 1 Known Exits Taken 1 | . 1 . Unknown Exits Taken 1 | 1 . . Scrap Searched . | . . . Spaces Dug . | . . . Terrain Destroyed . | . . . Melee . | . . . Projectile . | . . . AOE . | . . . Terrain Rammed . | . . . Walls Destroyed . | . . . Machines Disabled . | . . . Actions | -11 -10 -10 --------- Run | Yrd Mat Min Total 792 | 70 634 88 Wait 68 | . 65 3 Move 642 | 50 526 66 Hop . | . . . Pick Up 11 | 3 8 . Fast Attach 10 | 6 4 . Attach 4 | . . 4 Detach . | . . . Swap 5 | 1 2 2 Drop 5 | . 5 . Fire 47 | 10 24 13 Melee . | . . . Ram . | . . . Kick . | . . . Crush . | . . . Escape Stasis . | . . . Rewire . | . . . Trap . | . . . Miscellaneous . | . . . Route ------- -11/Scrapyard -10/Materials (discovered 6 exits: *Mat x3 / *Min x2 / Sub) -10/Mines History --------- Turn | Location | Event 14 | -11/Scrapyard | Discovered new exit (range 15) 94 | -11/Scrapyard | Entered Materials 236 | -10/Materials | Discovered new exit (range 16) 242 | -10/Materials | Discovered new exit (range 6) 318 | -10/Materials | Build established: Mutant 377 | -10/Materials | Learned Storage stockpile data 431 | -10/Materials | Identified exit to Materials 475 | -10/Materials | Identified exit to Mines 540 | -10/Materials | Learned Storage security intel 560 | -10/Materials | Learned location of Mines (-9) 613 | -10/Materials | Repaired Lgt. Armor Plating 628 | -10/Materials | Identified exit to Subcaves 837 | -10/Materials | Entered Mines 838 | -10/Mines | Assembled infested the area 880 | -10/Mines | Core integrity fell below 50% 887 | -10/Mines | Core integrity fell below 20% 933 | -10/Mines | Lost 7 parts (1p2n1u3w) 941 | -10/Mines | Learned location of Storage (-7) 946 | -10/Mines | Destroyed by as-06931 with Assembled Rifle Last Messages --------------- 00898_ D-53 Grenadier destroyed. 00898_ Matter Pump disabled. 00899_ K-01 Serf collects debris. 00901_ The unstable cave ceiling collapses. 00902_ Arm. Wheel destroyed. 00903_ K-01 Serf collects debris. 00904_ The unstable cave ceiling collapses. 00908_ K-01 Serf collects debris. 00912_ K-01 Serf destroyed. 00941_ A derelict emerges from the shadows: "Are any of them following you? I'm here trying to lose some heat after our second raid on Storage failed. Whatever you do stay away from that place, they've tightened security following our previous successful raids." World map updated: -7/Storage. 00943_ R7-EDW(g): "We scattered so the Unaware couldn't effectively use their advantage in numbers, and I suggest you do the same." 00943_ R7-EDW(g) slips back into the shadows. Map ----- +----------------------------------------------------+ | ????# #????????????????????????????? | | ????# ####### #????????????????????????????? | | ???## ##????????????????????????????????????? | | ??## ##?????????????????????????????????????? | | ?## ##??????????????????????????????????????? | | ## ####????????????????????????????????????? | | # ##???????????????????????????????????? | | # ##??????????????????????????????????? | | ## #??????????????????????????????????? | | ?####### ##?????????????????????????????????? | | ???????## """ ####??????????????????????????????? | | ????????# """ #######????????????????????????? | | ????????# """ #????????????????????????? | | ????????# #### #????????????????????????? | | ????????# ## ##??# #????????????????????????? | | ????????# ######???# #????????????????????????? | | ????????# #????????# #????????????????????????? | | ????????## #????????# #????????????????????????? | | ?????????## #????????## ##### #????????????????? | | ??????????# ?????????# #????????????????? | | ??????????##?????????# #????????????????? | | ?????????????????????# ##### #???????????????? | | ???????????????????### ##???? #??????????????? | | ??????????????????## a###???? #?????????????? | | ??????????????????# ##???? #?????????????? | | ??????????????????## @ #?????? #?????????????? | | ???????????????????### #????????????????????? | | ?????????????????????## #????????????????????? | | ??????????????????????## ##????????????????????? | | ???????????????????????#####?????????????????????? | | ?????????????????????????????????????????????????? | | | | | | | | | | | | | | | | | | | | | | | | | | | | | | | | | | | | | | | +----------------------------------------------------+ Best States ------------- Heat Dissipation 25 Energy Generation 12 Energy Capacity 265 Matter Stores 300 Matter Capacity 300 Sight Range 16 Terrain Scan Density 10 Armor Coverage 150 Evasion (%) 43 Recoil Reduction 1 Item Schematics ----------------- None Robot Schematics ------------------ None Fabricated ------------ Nothing Repaired ---------- Lgt. Armor Plating | 40% | -10/Materials Alien Tech Used ----------------- None Achievements -------------- None Challenges ------------ None Game ------ Seed FireMassMinigun Manual? 0 Play Time 00:09:54 Cumulative 455.4 hours Start 2025.08.12 @ 12:29:11 End 2025.08.12 @ 12:37:22 Sessions 1 Manual Loads 0 Difficulty Rogue Special Mode None Game No. 202 Rogue 202 Adventurer 0 Explorer 0 Win Type - Total 30 Types 12/2/5/2/5/1/0/2/0/1 Lore% 94 Gallery% 85 Achievement% 79 Wizard Run 0 Options --------- Layout 1 ASCII 0 Keyboard 0 Movement Numpad Keybinds 0 Fullscreen 1 Font 24/Smallcaps Map View 50x35 Zoom Use 0% Tactical HUD 1 Map Filters NONE Filters NONE Steam 1 RUN: c7104f28-294a-4f21-a40f-bad141a4ff18